Workbook

Sheet паспорт
A1: ПАТ "УКРТРАНСГАЗ" | G1: ПАСПОРТ ФІЗИКО-ХІМІЧНИХ ПОКАЗНИКІВ ПРИРОДНОГО ГАЗУ № 205
A2: Філія УМГ "ЛЬВІВТРАНСГАЗ" | G2: переданого Бібрським ЛВУМГ та прийнятого ПАТ "Львівгаз"
A3: Комарнівський ПМ Бібрське ЛВУМГ | G3: Маршрут № 205
A4: Вимірювальна хіміко-аналітична лабораторія
A5: Свідоцтво № РЛ 157/15 чинне до 14.12.2020 р. | K5: по газопроводу " Комарно-Дроздовичі Ду500" | V5: за період з | X5: 2017-05-01 | Z5: по | AA5: 2017-05-31
A7: Число місяця | B7: Компонентний склад, % мол. | N7: Фізико-хімічні показники газу обчислені на основі компонентного складу, 101,325 кПа | X7: Температура точки роси вологи (Р = 3.92 МПа), ºС | Y7: Температура точки роси вуглеводнів, ºС | Z7: Вміст сірководню, г/м3 | AA7: Вміст меркаптанової сірки, г/м3 | AB7: Вміст механічних домішок, г/м3
N8: Густина абсолютна, кг/м3,при 20 ºС, | O8: Температура вимірювання/згоряння при 20/25°С
B9: метан, С1 | C9: етан, С2 | D9: пропан, С3 | E9: ізо-бутан, і-С4 | F9: н-бутан, н-С4 | G9: нео-пентан, нео-С5 | H9: ізо-пентан, і-С5 | I9: н-пентан, н-С5 | J9: гексани та вищі, С6+ | K9: кисень, О2 | L9: азот, N2 | M9: діоксид вуглецю, CО2 | O9: Теплота згоряння нижча | R9: Теплота згоряння вища | U9: Число Воббе вище
O10: ккал/м3 | P10: МДж/м3 | Q10: кВт⋅год/м3 | R10: ккал/м3 | S10: МДж/м3 | T10: кВт⋅год/м3 | U10: ккал/м3 | V10: МДж/м3 | W10: кВт⋅год/м3
A11: 1 | O11: =P11*238.8459 -> 8200.917284 | P11: 34.3356 | Q11: =P11/3.6 -> 9.537666667 | R11: =S11*238.8459 -> 9092.887298 | S11: 38.0701 | T11: =S11/3.6 -> 10.57502778 | AC11: =SUM(B11:M11)+$K$42+$N$42 -> 0
A12: 2 | O12: =P12*238.8459 -> 8200.917284 | P12: 34.3356 | Q12: =P12/3.6 -> 9.537666667 | R12: =S12*238.8459 -> 9092.887298 | S12: 38.0701 | T12: =S12/3.6 -> 10.57502778 | AC12: 0
A13: 3 | B13: 96.0718 | C13: 2.1681 | D13: 0.6834 | E13: 0.1108 | F13: 0.1056 | G13: 0.0012 | H13: 0.0214 | I13: 0.0149 | J13: 0.0114 | K13: 0.006 | L13: 0.6219 | M13: 0.1836 | N13: 0.6992 | O13: =P13*238.8459 -> 8193.154792 | P13: 34.3031 | Q13: =P13/3.6 -> 9.528638889 | R13: =S13*238.8459 -> 9085.291998 | S13: 38.0383 | T13: =S13/3.6 -> 10.56619444 | U13: 11923.95 | V13: 49.9232 | W13: =W20 -> 13.86738889 | AC13: 100.0001 | AD13: =IF(AC13=100,"ОК"," ") -> 
A14: 4 | O14: =P14*238.8459 -> 8193.154792 | P14: 34.3031 | Q14: =P14/3.6 -> 9.528638889 | R14: =S14*238.8459 -> 9085.291998 | S14: 38.0383 | T14: =S14/3.6 -> 10.56619444 | AC14: 0 | AD14: =IF(AC14=100,"ОК"," ") -> 
A15: 5 | O15: 8193.154792 | P15: 34.3031 | Q15: 9.528638889 | R15: 9085.291998 | S15: 38.0383 | T15: 10.56619444 | AC15: 0
A16: 6 | O16: 8193.154792 | P16: 34.3031 | Q16: 9.528638889 | R16: 9085.291998 | S16: 38.0383 | T16: 10.56619444 | AC16: 0
A17: 7 | O17: 8193.154792 | P17: 34.3031 | Q17: 9.528638889 | R17: 9085.291998 | S17: 38.0383 | T17: 10.56619444 | AC17: 0
A18: 8 | O18: 8193.154792 | P18: 34.3031 | Q18: 9.528638889 | R18: 9085.291998 | S18: 38.0383 | T18: 10.56619444 | AC18: 0
A19: 9 | O19: 8193.154792 | P19: 34.3031 | Q19: 9.528638889 | R19: 9085.291998 | S19: 38.0383 | T19: 10.56619444 | AC19: 0
A20: 10 | B20: 95.9694 | C20: 2.2267 | D20: 0.6989 | E20: 0.112 | F20: 0.1071 | G20: 0.0012 | H20: 0.0218 | I20: 0.0152 | J20: 0.0113 | K20: 0.0067 | L20: 0.6478 | M20: 0.182 | N20: 0.6999 | O20: 8197.406249 | P20: 34.3209 | Q20: 9.533583333 | R20: 9089.758416 | S20: 38.057 | T20: 10.57138889 | U20: 11923.81 | V20: 49.9226 | W20: =V20/3.6 -> 13.86738889 | AC20: 100.0001
A21: 11 | O21: =P21*238.8459 -> 8197.406249 | P21: 34.3209 | Q21: =P21/3.6 -> 9.533583333 | R21: =S21*238.8459 -> 9089.758416 | S21: 38.057 | T21: =S21/3.6 -> 10.57138889 | AC21: 0
A22: 12 | O22: 8197.406249 | P22: 34.3209 | Q22: 9.533583333 | R22: 9089.758416 | S22: 38.057 | T22: 10.57138889 | AC22: 0
A23: 13 | O23: 8197.406249 | P23: 34.3209 | Q23: 9.533583333 | R23: 9089.758416 | S23: 38.057 | T23: 10.57138889 | AC23: 0
A24: 14 | O24: 8197.406249 | P24: 34.3209 | Q24: 9.533583333 | R24: 9089.758416 | S24: 38.057 | T24: 10.57138889 | AC24: 0
A25: 15 | B25: 95.8363 | C25: 2.3303 | D25: 0.7314 | E25: 0.1175 | F25: 0.1121 | G25: 0.0012 | H25: 0.0228 | I25: 0.016 | J25: 0.0122 | K25: 0.0055 | L25: 0.6212 | M25: 0.1936 | N25: 0.7012 | O25: =P25*238.8459 -> 8211.880311 | P25: 34.3815 | Q25: =P25/3.6 -> 9.550416667 | R25: =S25*238.8459 -> 9105.307284 | S25: 38.1221 | T25: =S25/3.6 -> 10.58947222 | U25: 11933.67 | V25: 49.9639 | W25: =V25/3.6 -> 13.87886111 | AC25: 100.0001
A26: 16 | O26: =P26*238.8459 -> 8211.880311 | P26: 34.3815 | Q26: =P26/3.6 -> 9.550416667 | R26: =S26*238.8459 -> 9105.307284 | S26: 38.1221 | T26: =S26/3.6 -> 10.58947222 | AC26: 0
A27: 17 | O27: 8211.880311 | P27: 34.3815 | Q27: 9.550416667 | R27: 9105.307284 | S27: 38.1221 | T27: 10.58947222 | AC27: 0
A28: 18 | O28: 8211.880311 | P28: 34.3815 | Q28: 9.550416667 | R28: 9105.307284 | S28: 38.1221 | T28: 10.58947222 | AC28: 0
A29: 19 | O29: 8211.880311 | P29: 34.3815 | Q29: 9.550416667 | R29: 9105.307284 | S29: 38.1221 | T29: 10.58947222 | AC29: 0
A30: 20 | O30: 8211.880311 | P30: 34.3815 | Q30: 9.550416667 | R30: 9105.307284 | S30: 38.1221 | T30: 10.58947222 | AC30: 0 | AD30: =IF(AC30=100,"ОК"," ") -> 
A31: 21 | O31: 8211.880311 | P31: 34.3815 | Q31: 9.550416667 | R31: 9105.307284 | S31: 38.1221 | T31: 10.58947222 | AC31: 0
A32: 22 | O32: 8211.880311 | P32: 34.3815 | Q32: 9.550416667 | R32: 9105.307284 | S32: 38.1221 | T32: 10.58947222 | AC32: 0
A33: 23 | B33: 95.8526 | C33: 2.3039 | D33: 0.7228 | E33: 0.1143 | F33: 0.1088 | G33: 0.0013 | H33: 0.0217 | I33: 0.0153 | J33: 0.0113 | K33: 0.0067 | L33: 0.6472 | M33: 0.1941 | N33: 0.7009 | O33: =P33*238.8459 -> 8205.073203 | P33: 34.353 | Q33: =P33/3.6 -> 9.5425 | R33: =S33*238.8459 -> 9097.926946 | S33: 38.0912 | T33: =S33/3.6 -> 10.58088889 | U33: 11926.48 | V33: 49.9338 | W33: =V33/3.6 -> 13.8705 | AC33: 100 | AD33: =IF(AC33=100,"ОК"," ") -> ОК
A34: 24 | O34: =P34*238.8459 -> 8205.073203 | P34: 34.353 | Q34: =P34/3.6 -> 9.5425 | R34: =S34*238.8459 -> 9097.926946 | S34: 38.0912 | T34: =S34/3.6 -> 10.58088889 | AC34: 0
A35: 25 | O35: 8205.073203 | P35: 34.353 | Q35: 9.5425 | R35: 9097.926946 | S35: 38.0912 | T35: 10.58088889 | AC35: 0
A36: 26 | O36: 8205.073203 | P36: 34.353 | Q36: 9.5425 | R36: 9097.926946 | S36: 38.0912 | T36: 10.58088889 | AC36: 0
A37: 27 | O37: 8205.073203 | P37: 34.353 | Q37: 9.5425 | R37: 9097.926946 | S37: 38.0912 | T37: 10.58088889 | AC37: 0
A38: 28 | O38: 8205.073203 | P38: 34.353 | Q38: 9.5425 | R38: 9097.926946 | S38: 38.0912 | T38: 10.58088889 | AC38: 0
A39: 29 | B39: 95.7956 | C39: 2.3179 | D39: 0.7594 | E39: 0.1205 | F39: 0.1167 | G39: 0.0013 | H39: 0.0231 | I39: 0.0158 | J39: 0.011 | K39: 0.0053 | L39: 0.6459 | M39: 0.1875 | N39: 0.7016 | O39: =P39*238.8459 -> 8214.221001 | P39: 34.3913 | Q39: =P39/3.6 -> 9.553138889 | R39: =S39*238.8459 -> 9107.743513 | S39: 38.1323 | T39: =S39/3.6 -> 10.59230556 | U39: 11933.39 | V39: 49.9627 | W39: =V39/3.6 -> 13.87852778 | X39: -19.9 | Z39: 0 | AA39: 0 | AB39: 0 | AC39: =SUM(B39:M39)+$K$42+$N$42 -> 100 | AD39: ОК
A40: 30 | O40: =P40*238.8459 -> 8214.221001 | P40: 34.3913 | Q40: =P40/3.6 -> 9.553138889 | R40: =S40*238.8459 -> 9107.743513 | S40: 38.1323 | T40: =S40/3.6 -> 10.59230556 | AC40: 0
A41: 31 | O41: 8214.221001 | P41: 34.3913 | Q41: 9.553138889 | R41: 9107.743513 | S41: 38.1323 | T41: 10.59230556 | AC41: 0
A42: Рівень одоризації відповідає чинним нормативним документам | O42: 8201.859788 | P42: 34.33954608 | Q42: 9.538762799 | R42: 9094.496319 | S42: 38.07683665 | T42: 10.57689907
H43: Середньозважене значення теплоти згоряння:
B45: Начальник управління Бібрського ЛВУМГ Саловський Б.Й. 31.05.2017p.
C46: Підрозділу підприємства, якому підпорядкована лабораторія | O46: прізвище | R46: підпис | V46: дата
B47: Хімік ВХАЛ Іваненко О.С. 31.05.2017p.
C48: Лабораторія, де здійснювалось вимірювання газу | O48: прізвище | R48: підпис | V48: дата
B49: Начальник дільниці ГВіМ Кузьмін Т.Б. 31.05.2017p.
C50: Підрозділу, відповідального за облік газу за маршрутом | O50: прізвище | R50: підпис | V50: дата

Sheet додаток
A2: Додаток до Паспорту фізико-хімічних показників природного газу №205
A4: Область | B4: ГРС, прямий споживач | C4: Cередньозважене значення вищої теплоти згоряння
C5: МДж/м³ | D5: ккал/м³ | E5: кВт*год./м³
A6: Львівська область | B6: ГРС Коропуж | C6: 38.08 | D6: 9095 | E6: 10.58
B7: ГРС Луки | C7: 38.08 | D7: 9094 | E7: 10.58
B8: ГРС Рудки | C8: 38.08 | D8: 9094 | E8: 10.58
B9: ГРС Бабине | C9: 38.07 | D9: 9094 | E9: 10.58
B10: ГРС Воютичі | C10: 38.09 | D10: 9097 | E10: 10.58
B11: ГРС Ст.Самбір | C11: 38.07 | D11: 9094 | E11: 10.58
B12: ГРС Хирів | C12: 38.08 | D12: 9095 | E12: 10.58
B13: ГРС Лютовиська | C13: 38.07 | D13: 9094 | E13: 10.58
B14: ГРС Міженець | C14: 38.08 | D14: 9095 | E14: 10.58
B15: ГРС Турка | C15: 38.08 | D15: 9095 | E15: 10.58
A16: Середньозважене значення вищої теплоти згоряння по маршруту № 205 | C16: 38.08 | D16: 9094 | E16: 10.58
A20: Начальник управління Бібрського ЛВУМГ Саловський Б.Й. 31.05.2017p.
A21: Підрозділу підприємства, якому підпорядкована лабораторія | D21: прізвище | E21: підпис | F21: дата
A22: Хімік ВХАЛ Іваненко О.С. 31.05.2017p.
A23: Лабораторія, де здійснювалось вимірювання газу | D23: прізвище | E23: підпис | F23: дата
A24: Начальник дільниці ГВіМ Кузьмін Т.Б. 31.05.2017p.
A25: Підрозділу, відповідального за облік газу за маршрутом | D25: прізвище | E25: підпис | F25: дата

Sheet variablesList (hidden)
A1: 3 | B1: x:\gaysin | C1: 10, 11, 24, 25, 127, 128, 132, 180, 207, 215 | D1: x:\
B2: x:\Illinci
B3: x:\Talne
